bitfinex-derivatives/quotes_SOLF0:USTF0_20250516
["timestamp","ask_amount","ask_price","bid_price","bid_amount"]
[1747370053774,58.36,172.17,172.09,5.8092]
[1747370054574,65.19336934,172.17,172.06,60.3456]
[1747370054873,65.19336934,172.17,172.05,100.55635923]
[1747370055372,65.19336934,172.17,172.06,5.8102]
[1747370055875,65.19336934,172.17,172.07,5.8101]
[1747370056372,65.19336934,172.17,172.05,100.55635923]
[1747370056575,5.8094,172.1,172.06,5.8104]
[1747370056873,58.36,172.11,172.05,100.55635923]
[1747370057663,64.1689,172.11,172.07,5.8101]
[1747370057974,58.36,172.11,172.05,100.55635923]
[1747370059673,5.8101,172.08,172.04,5.8108]
[1747370062175,5.8102,172.07,172.03,9.6274]
[1747370063177,5.8099,172.08,172.04,5.8111]
[1747370063980,64.1702,172.07,172.03,9.6274]
[1747370064270,58.36,172.07,172.03,3.816]
[1747370064478,58.36,172.07,172.0,65.19336934]
[1747370065078,5.8105,172.06,172.01,5.8119]
[1747370065279,58.36,172.07,172.01,5.8119]
[1747370065472,58.36,172.07,171.98,3.7917]
[1747370066173,5.8112,172.04,171.98,3.7917]
[1747370066679,58.36,172.07,171.98,3.7917]
[1747370067183,5.8119,172.02,171.98,9.6048]
[1747370067381,64.1719,172.02,171.98,9.6048]
[1747370068382,58.36,172.02,171.99,5.8128]
[1747370068579,58.36,172.02,171.98,3.7917]
[1747370068979,58.36,172.02,172.0,5.8122]
[1747370070985,58.36,172.02,171.98,3.7917]
[1747370071282,58.36,172.02,171.99,5.8127]
[1747370071990,64.1719,172.02,171.98,9.6048]
[1747370072182,64.1719,172.02,171.94,65.21336934]
[1747370072183,58.36,172.02,171.94,65.21336934]
[1747370072581,58.36,172.02,171.93,5.6853]
[1747370073777,5.8126,172.0,171.95,5.814]
[1747370073980,58.36,172.02,171.93,5.6853]
[1747370074383,64.1721,172.02,171.96,5.8136]
[1747370075183,64.1721,172.02,171.97,5.8134]
[1747370075690,58.36,172.02,171.95,5.8141]
[1747370076285,5.8127,172.0,171.95,5.8141]
[1747370076490,58.4,171.99,171.96,5.8137]
[1747370076787,58.38,171.98,171.96,5.8137]
[1747370077192,58.38,171.98,171.97,5.8135]
[1747370080490,58.38,171.98,171.82,1.01209865]
[1747370080791,58.38,171.98,171.86,6.83336934]
[1747370080988,58.38,171.98,171.87,1.9208]
[1747370081393,5.8138,171.96,171.92,5.815]
[1747370082187,5.8136,171.97,171.92,5.815]
[1747370082794,5.8139,171.96,171.92,5.815]
[1747370083697,5.8136,171.97,171.93,5.8148]
[1747370085893,58.38,171.98,171.87,60.3208]
[1747370086095,58.38,171.98,171.89,6.83336934]
[1747370086394,58.38,171.98,171.95,5.8141]
[1747370086594,58.38,171.98,171.89,6.83336934]
[1747370087002,58.38,171.98,171.93,5.8146]
[1747370087197,64.1934,171.98,171.89,6.83336934]
[1747370087496,58.38,171.98,171.89,6.83336934]
[1747370087794,5.8142,171.95,171.87,60.3208]
[1747370088097,58.38,171.94,171.9,5.8157]
[1747370088399,58.38,171.94,171.87,60.3208]
[1747370089594,58.38,171.94,171.9,5.8156]
[1747370089802,58.38,171.94,171.87,60.3208]
[1747370089995,58.38,171.96,171.89,6.83336934]
[1747370090699,58.38,171.96,171.94,5.8145]
[1747370091193,58.38,171.96,171.89,6.83336934]
[1747370091897,58.38,171.96,171.92,5.8149]
[1747370092095,58.38,171.96,171.89,6.83336934]
[1747370093399,58.38,171.96,171.95,5.8142]
[1747370093896,58.38,171.96,171.89,6.83336934]
[1747370094096,58.38,171.96,171.94,5.8142]
[1747370095493,58.38,171.96,171.95,5.8142]
[1747370095693,58.38,171.96,171.89,6.83336934]
[1747370095894,58.38,171.96,171.92,5.8151]
[1747370096199,5.8149,171.93,171.87,60.3208]
[1747370096998,5.8149,171.93,171.9,5.8159]
[1747370097390,58.38,171.92,171.9,5.8159]
[1747370099400,58.38,171.92,171.91,5.8155]
[1747370100200,58.38,171.92,171.9,5.8158]
[1747370100401,58.38,171.92,171.87,60.3208]
[1747370101093,58.38,171.92,171.88,5.8164]
[1747370101297,58.38,171.92,171.87,60.3208]
[1747370101800,58.38,171.92,171.91,5.8155]
[1747370102598,58.38,171.94,171.93,5.8149]
[1747370102799,116.76,171.94,171.93,5.8149]
[1747370102995,116.76,171.94,171.87,60.3208]
[1747370103299,116.76,171.94,171.92,5.815]
[1747370103996,116.76,171.94,171.93,5.8149]
[1747370104392,116.76,171.94,171.87,60.3208]
[1747370104599,116.76,171.94,171.92,5.8151]
[1747370105101,116.76,171.94,171.93,5.8149]
[1747370106004,58.38,171.94,171.93,5.8149]
[1747370106606,5.8134,171.98,171.93,5.8149]
[1747370106900,116.76,171.97,171.87,60.3208]
[1747370107100,58.38,171.96,171.89,6.83336934]
[1747370107403,116.76,171.97,171.89,6.83336934]
[1747370107803,116.76,171.97,171.95,5.8139]
[1747370108203,116.76,171.97,171.94,5.8143]
[1747370108393,116.76,171.97,171.89,6.83336934]
[1747370108902,116.76,171.97,171.95,5.8139]
[1747370109802,116.76,171.97,171.94,5.8144]
[1747370110200,58.38,171.97,171.94,5.8144]
[1747370110399,116.74,171.97,171.94,5.8144]
[1747370112508,116.74,171.97,171.95,5.8142]
[1747370112692,116.74,171.97,171.89,6.83336934]
[1747370113405,116.74,171.97,171.94,5.8143]
[1747370118105,116.74,171.97,171.89,6.83336934]
[1747370118305,58.36,171.97,171.89,6.83336934]
[1747370118606,5.8125,172.0,171.89,6.83336934]
[1747370118799,502.3,172.03,171.92,6.83336934]
[1747370119000,58.36,172.01,171.93,3.845]
[1747370119602,5.8126,172.0,171.96,5.8136]
[1747370119800,58.36,172.01,171.93,3.845]
[1747370120306,5.8125,172.0,171.96,5.8136]
[1747370122409,5.8125,172.0,171.97,5.8135]
[1747370122609,58.36,171.99,171.93,3.845]
[1747370123608,58.36,171.99,171.96,5.8136]
[1747370123909,58.36,171.99,171.93,3.845]
[1747370124299,58.36,172.01,171.93,5.8146]
[1747370124504,116.7,172.01,171.95,6.83336934]
[1747370124702,58.34,172.01,171.95,6.83336934]
[1747370125413,58.34,172.01,171.99,5.8126]
[1747370126612,58.34,172.01,172.0,5.8125]
[1747370126810,58.34,172.01,171.95,6.83336934]
[1747370127610,58.34,172.04,171.96,58.34]
[1747370127811,116.68,172.04,171.96,58.34]
[1747370128410,58.34,172.04,171.96,58.34]
[1747370128612,116.68,172.04,171.96,58.34]
[1747370129513,116.68,172.04,172.01,5.8118]
[1747370129806,58.34,172.04,171.96,58.34]
[1747370130012,58.34,172.07,171.98,6.83336934]
[1747370130213,58.34,172.06,171.99,5.6215]
[1747370131216,58.34,172.06,172.03,5.8112]
[1747370131715,58.34,172.07,172.03,5.8112]
[1747370131913,58.32,172.06,172.03,5.8112]
[1747370132323,58.32,172.06,172.04,5.8111]
[1747370132523,6.83336934,172.14,172.01,65.17336934]
[1747370132731,116.66,172.13,172.01,65.17336934]
[1747370133627,5.8092,172.1,172.01,65.17336934]
[1747370133925,58.32,172.09,172.01,65.17336934]
[1747370134329,64.1296,172.09,172.04,5.8108]
[1747370135328,64.1296,172.09,172.05,5.8108]
[1747370136427,58.32,172.09,172.06,5.8104]
[1747370136722,5.8092,172.1,172.06,5.8104]
[1747370136925,64.1292,172.1,172.06,5.8104]
[1747370137426,5.8092,172.1,172.06,5.8104]
[1747370137629,64.1292,172.1,172.06,5.8104]
[1747370138530,5.8092,172.1,172.06,5.8104]
[1747370138730,64.1292,172.1,172.06,5.8104]
[1747370139230,64.1292,172.1,172.05,5.8107]
[1747370139530,5.8095,172.09,172.05,5.8107]
[1747370139833,58.32,172.1,172.05,5.8107]
[1747370140030,64.1292,172.1,172.05,5.8107]
[1747370140232,64.1292,172.1,172.06,5.8103]
[1747370140932,58.32,172.1,172.01,65.17336934]
[1747370142035,5.8095,172.09,172.05,5.8107]
[1747370143533,64.1292,172.1,172.06,5.8103]
[1747370144335,5.8095,172.09,172.05,5.8108]
[1747370144536,58.32,172.1,172.01,65.17336934]
[1747370145232,58.28,172.09,172.01,65.17336934]
[1747370145432,5.8104,172.07,172.02,5.8115]
[1747370145937,5.8104,172.07,172.03,5.8114]
[1747370147538,58.28,172.09,172.01,58.34]
[1747370148535,64.0896,172.09,172.04,5.8108]
[1747370149737,122.3696,172.09,172.04,5.8108]
[1747370149939,122.3696,172.09,172.05,5.8107]
[1747370150244,58.28,172.12,172.01,65.17336934]
[1747370150543,58.28,172.11,172.05,5.8107]
[1747370150943,58.28,172.11,172.03,5.8112]
[1747370151443,5.81,172.08,172.03,5.8112]
[1747370151844,58.28,172.11,172.03,5.8112]
[1747370153342,5.8102,172.07,172.03,5.8112]
[1747370155645,5.8102,172.07,172.04,5.8111]
[1747370158344,5.8105,172.06,172.03,5.8114]
[1747370158545,58.28,172.11,172.03,5.8114]
[1747370159148,5.8103,172.07,172.03,5.8114]
[1747370159646,5.8103,172.07,172.04,5.8111]
[1747370159846,5.8099,172.08,172.04,5.8111]
[1747370161147,5.8102,172.07,172.04,5.8111]
[1747370162147,5.8102,172.07,172.03,5.8114]
[1747370163249,64.0702,172.07,172.03,5.8114]
[1747370163953,64.0702,172.07,172.04,5.8111]
[1747370164155,58.26,172.07,172.04,5.8111]
[1747370164955,64.0702,172.07,172.03,5.8114]
[1747370165350,64.0702,172.07,172.04,4.37740941]
[1747370166556,58.26,172.07,172.04,10.18850941]
[1747370166855,58.26,172.07,172.04,4.37740941]
[1747370167057,64.0702,172.07,172.04,4.37740941]
[1747370170750,58.26,172.07,172.04,10.18840941]
[1747370171054,58.26,172.07,172.04,4.37740941]
[1747370171257,58.26,172.07,172.02,5.8117]
[1747370171451,58.26,172.07,172.02,10.18910941]
[1747370171756,58.26,172.07,172.02,4.37740941]
[1747370171957,5.8108,172.05,172.02,5.8118]
[1747370172158,5.8108,172.05,172.01,4.37740941]
[1747370173155,58.26,172.07,172.0,92.07852611]
[1747370173357,62.63740941,172.07,172.0,87.7011167]
[1747370173860,5.8114,172.04,172.0,93.5134167]
[1747370174064,5.8114,172.04,172.0,97.89082611]
[1747370176854,5.8114,172.04,172.0,10.18970941]
[1747370177364,5.8115,172.03,172.0,4.37740941]
[1747370179062,58.26,172.03,171.99,8.10250941]
[1747370179359,58.26,172.03,171.97,4.37740941]
[1747370179760,58.26,172.03,171.97,10.19080941]
[1747370179761,5.8124,172.01,171.97,10.19080941]
[1747370180258,5.8131,171.99,171.97,4.37740941]
[1747370180464,58.26,171.99,171.94,8.20140941]
[1747370180865,58.26,171.99,171.89,1.8745]
[1747370180866,62.63740941,171.99,171.91,4.37740941]
[1747370182265,5.8145,171.94,171.91,4.37740941]
[1747370182467,58.26,171.94,171.88,4.37740941]
[1747370183270,58.26,171.94,171.87,1.8745]
[1747370183470,5.8153,171.92,171.88,5.8163]
[1747370183670,58.26,171.94,171.88,5.8163]
[1747370184065,64.0748,171.94,171.89,5.8161]
[1747370184571,64.0748,171.94,171.87,1.8745]
[1747370185371,58.26,171.94,171.87,1.8745]
[1747370186373,58.26,171.94,171.91,5.8154]
[1747370188378,64.0746,171.94,171.89,5.816]
[1747370188979,64.0746,171.94,171.9,5.8158]
[1747370189180,58.26,171.94,171.9,5.8158]
[1747370189478,58.26,171.94,171.91,5.8155]
[1747370190481,58.26,171.94,171.9,5.8158]
[1747370191380,58.26,171.94,171.91,5.8154]
[1747370192081,64.0746,171.94,171.86,95.20291474]
[1747370192577,58.26,171.94,171.86,95.20291474]
[1747370193584,58.26,171.94,171.86,102.05463203]
[1747370193882,58.26,171.94,171.86,95.20291474]
[1747370194079,58.26,171.96,171.86,3.7612]
[1747370194386,58.28,171.93,171.78,58.28]
[1747370194683,5.8165,171.89,171.84,5.8179]
[1747370194884,58.28,171.88,171.84,5.8179]
[1747370195283,64.0966,171.88,171.84,5.8179]
[1747370195680,58.28,171.88,171.8,3.7431]
[1747370195882,116.58,171.88,171.8,3.7431]
[1747370196282,116.58,171.88,171.83,5.8179]
[1747370197288,122.3966,171.88,171.83,5.8179]
[1747370197481,116.58,171.88,171.84,5.8179]
[1747370199588,122.3966,171.88,171.84,5.8179]
[1747370200985,116.58,171.88,171.85,5.8175]
[1747370201290,116.58,171.88,171.8,3.7431]
[1747370201483,116.58,171.88,171.86,5.817]
[1747370201684,116.58,171.88,171.81,6.85171729]
[1747370201890,58.28,171.88,171.87,5.8169]
[1747370202997,6.85171729,171.97,171.84,6.85171729]
[1747370203186,116.6,171.96,171.84,6.85171729]
[1747370203387,116.6,171.96,171.85,1.8924]
[1747370203693,5.8144,171.95,171.85,1.8924]
[1747370203991,5.8144,171.95,171.86,3.6652]
[1747370204182,58.3,171.98,171.87,6.85171729]
[1747370204492,58.3,171.97,171.87,6.85171729]
[1747370204694,64.1136,171.97,171.92,5.8149]
[1747370205291,64.1136,171.97,171.93,5.8148]
[1747370206587,58.3,171.97,171.94,5.8144]
[1747370207089,58.28,171.96,171.9,6.85171729]
[1747370207795,58.28,171.96,171.94,5.8142]
[1747370208495,58.28,171.96,171.9,6.85171729]
[1747370208999,58.28,171.96,171.95,5.8142]
[1747370209405,116.58,171.99,171.9,6.85171729]
[1747370209599,64.0922,172.01,171.9,65.13171729]
[1747370209802,58.28,171.99,171.9,65.13171729]
[1747370210007,58.28,171.99,171.98,5.8132]
[1747370210199,58.28,171.99,171.9,65.13171729]
[1747370210711,58.28,172.0,171.93,6.85171729]
[1747370211002,58.28,172.0,171.94,3.9076]
[1747370211203,58.28,172.0,171.98,5.813]
[1747370211803,64.0719,172.02,171.98,5.813]
[1747370212102,58.28,172.01,171.98,5.813]
[1747370212500,58.28,172.01,171.99,5.8127]
[1747370212802,58.28,172.04,171.97,58.26]
[1747370213800,5.8115,172.03,171.97,64.0732]
[1747370214005,58.28,172.04,171.97,58.26]
[1747370214407,5.8121,172.02,171.97,58.26]
[1747370214905,5.8122,172.01,171.97,58.26]
[1747370215906,5.8122,172.01,171.97,64.0735]
[1747370216105,5.8119,172.02,171.97,64.0735]
[1747370216802,5.8122,172.01,171.97,58.26]
[1747370217300,5.8119,172.02,171.97,64.0733]
[1747370218308,5.8115,172.03,171.98,5.813]
[1747370219309,5.8119,172.02,171.98,5.813]
[1747370219807,58.28,172.04,171.99,5.8126]
[1747370220006,58.26,172.03,171.97,58.26]
[1747370220511,58.26,172.03,172.01,5.8121]
[1747370220707,58.26,172.03,171.97,58.26]
[1747370221011,5.8112,172.04,171.97,58.26]
[1747370221210,64.0712,172.04,171.97,58.26]
[1747370221413,58.26,172.04,172.0,5.8122]
[1747370221714,58.26,172.04,171.97,58.26]
[1747370222014,58.26,172.04,172.01,5.8121]
[1747370222216,58.26,172.06,171.97,65.11171729]
[1747370222411,58.26,172.06,171.98,58.26]
[1747370222610,58.26,172.06,172.03,5.8114]
[1747370222813,5.81,172.08,171.98,58.26]
[1747370223010,58.26,172.07,172.0,6.85171729]
[1747370223211,58.26,172.07,172.04,5.8109]
[1747370223711,58.26,172.09,172.01,62.0247]
[1747370223908,58.26,172.09,172.02,1.9957]
[1747370224311,58.24,172.12,172.05,5.8105]
[1747370224615,64.0689,172.11,172.02,1.9957]
[1747370225812,64.0689,172.11,172.06,5.8103]
[1747370226517,64.0689,172.11,172.07,5.8101]
[1747370226718,58.24,172.12,172.05,58.24]
[1747370227713,64.0485,172.12,172.08,5.8097]
[1747370227915,58.24,172.19,172.06,65.13171729]
[1747370228111,58.28,172.18,172.06,65.13171729]
[1747370228818,64.0865,172.18,172.06,65.13171729]
[1747370229424,58.28,172.18,172.14,5.8077]
[1747370229724,58.32,172.17,172.09,65.07171729]
[1747370229911,58.24,172.19,172.1,5.7553]
[1747370230118,58.22,172.26,172.12,6.85171729]
[1747370230420,58.3,172.24,172.13,58.22]
[1747370230823,5.8057,172.21,172.15,5.8073]
[1747370231021,58.3,172.2,172.13,58.22]
[1747370231322,58.28,172.19,172.12,5.8084]
[1747370231822,5.8065,172.18,172.13,5.808]
[1747370232424,64.0861,172.19,172.14,5.8077]
[1747370233617,5.8061,172.19,172.14,5.8077]
[1747370233820,58.28,172.18,172.14,5.8077]
[1747370234421,64.0864,172.18,172.1,157.40272338]
[1747370234625,58.28,172.18,172.1,157.40272338]
[1747370235126,5.807,172.17,172.12,5.8083]
[1747370235321,58.28,172.18,172.1,157.40272338]
[1747370235725,58.28,172.18,172.14,5.8075]
[1747370236428,58.28,172.18,172.15,5.8074]
[1747370236622,58.26,172.19,172.1,157.40272338]
[1747370236832,58.26,172.19,172.13,6.85171729]
[1747370237019,5.8052,172.22,172.16,5.8071]
[1747370237225,58.24,172.21,172.16,5.8071]
[1747370237831,64.0455,172.21,172.16,5.8071]
[1747370238524,58.24,172.21,172.14,58.22]
[1747370238830,58.24,172.21,172.11,58.22]
[1747370239333,6.85171729,172.19,172.08,58.22]
[1747370239525,5.8081,172.14,172.09,5.8092]
[1747370239725,58.32,172.13,172.09,5.8092]
[1747370240128,5.8085,172.12,172.08,5.8098]
[1747370240530,58.32,172.13,172.06,58.22]
[1747370240735,5.8085,172.12,172.07,5.8098]
[1747370241033,58.32,172.13,172.07,5.8098]
[1747370241333,58.32,172.13,172.06,58.22]
[1747370242026,58.32,172.13,172.1,5.8089]
[1747370242425,58.66,172.15,172.06,65.07171729]
[1747370243633,5.8082,172.13,172.09,5.8093]
[1747370243835,58.66,172.15,172.09,5.8093]
[1747370244028,58.66,172.15,172.06,65.07171729]
[1747370244329,5.8079,172.14,172.09,5.8093]
[1747370244934,5.8082,172.13,172.09,5.8093]
[1747370245837,5.8086,172.12,172.07,5.8099]
[1747370246134,59.24,172.11,172.06,58.22]
[1747370246528,59.24,172.11,172.06,65.07171729]
[1747370247542,59.24,172.11,172.08,5.8095]
[1747370247834,59.24,172.11,172.06,65.07171729]
[1747370248035,59.24,172.11,172.07,5.8099]
[1747370249236,59.24,172.11,172.08,5.8097]
[1747370249537,59.24,172.11,172.06,65.07171729]
[1747370249836,59.24,172.11,172.1,5.8091]
[1747370250026,58.22,172.14,172.1,5.8091]
[1747370250231,117.5,172.14,172.1,5.8091]
[1747370251833,117.5,172.14,172.06,65.07171729]
[1747370252039,59.28,172.14,172.06,124.31171729]
[1747370252741,59.28,172.14,172.11,5.8084]
[1747370252941,59.28,172.14,172.06,124.31171729]
[1747370253240,59.28,172.14,172.1,5.8088]
[1747370253636,59.28,172.14,172.06,124.31171729]
[1747370254033,59.28,172.14,172.06,65.07171729]
[1747370254840,59.22,172.14,172.06,65.07171729]
[1747370255541,59.22,172.14,172.11,5.8087]
[1747370255837,58.22,172.17,172.06,65.07171729]
[1747370256039,59.22,172.16,172.06,65.07171729]
[1747370256944,59.22,172.16,172.12,5.8081]
[1747370257241,58.22,172.2,172.1,58.22]
[1747370257445,59.22,172.19,172.1,58.22]
[1747370257741,59.22,172.19,172.11,3.7803]
[1747370257937,59.24,172.18,172.11,3.7803]
[1747370258442,59.24,172.18,172.13,5.8081]
[1747370258839,59.24,172.18,172.11,3.7803]
[1747370259238,5.8068,172.17,172.12,5.8084]
[1747370259737,59.2,172.16,172.12,5.8084]
[1747370260940,59.2,172.16,172.13,5.8081]
[1747370261243,59.2,172.16,172.11,3.7803]
[1747370261741,59.2,172.16,172.1,58.22]
[1747370261936,59.2,172.16,172.07,65.07171729]
[1747370262142,117.42,172.16,172.07,65.07171729]
[1747370263044,59.2,172.16,172.07,65.07171729]
[1747370263341,59.2,172.16,172.13,5.8079]
[1747370263845,59.2,172.16,172.12,5.8084]
[1747370264644,65.0073,172.16,172.11,5.8087]
[1747370264847,59.2,172.16,172.11,5.8087]
[1747370265046,59.2,172.16,172.07,65.07171729]
[1747370265244,5.8081,172.14,172.1,5.809]
[1747370266046,5.8075,172.15,172.11,5.8087]
[1747370267045,65.0072,172.16,172.12,5.8084]
[1747370267348,59.2,172.16,172.12,5.8084]
[1747370268641,5.8074,172.15,172.12,5.8084]
[1747370268946,5.8074,172.15,172.11,5.8087]
[1747370269147,5.8075,172.15,172.11,5.8087]
[1747370269337,59.2,172.16,172.07,65.07171729]
[1747370269542,59.2,172.16,172.1,5.8089]
[1747370269744,59.2,172.16,172.07,65.07171729]
[1747370270047,59.2,172.16,172.11,5.8085]
[1747370271548,5.8075,172.15,172.11,5.8085]
[1747370273150,5.8079,172.14,172.1,5.809]
[1747370273341,59.2,172.16,172.1,5.809]
[1747370274850,5.808,172.14,172.1,5.809]
[1747370275950,5.808,172.14,172.11,5.8088]
[1747370276844,5.808,172.14,172.1,5.809]
[1747370278856,5.8075,172.15,172.11,5.8087]
[1747370279049,59.2,172.16,172.07,65.07171729]
[1747370279353,5.8075,172.15,172.07,65.07171729]
[1747370279951,5.8075,172.15,172.11,5.8085]
[1747370280147,191.80507775,172.2,172.07,65.07171729]
[1747370280350,59.34,172.17,172.07,65.07171729]
[1747370281256,59.34,172.17,172.13,5.8079]
[1747370281454,65.1468,172.17,172.13,5.8079]
[1747370281751,59.04,172.16,172.13,5.8079]
[1747370282053,59.04,172.16,172.14,5.8077]
[1747370282754,59.04,172.16,172.13,5.808]
[1747370284752,59.04,172.16,172.07,65.07171729]
[1747370284950,59.04,172.16,172.07,58.22]
[1747370285548,59.04,172.16,172.04,65.0297]
[1747370285742,6.85171729,172.14,172.04,65.0297]
[1747370285951,59.34,172.13,172.06,5.8104]
[1747370286252,59.22,172.12,172.04,3.6782]
[1747370286453,5.8104,172.07,172.03,5.8112]
[1747370286650,65.0104,172.07,172.03,5.8112]
[1747370288255,5.8107,172.06,172.02,5.8117]
[1747370290057,59.2,172.07,172.01,59.34]
[1747370291357,59.2,172.07,172.01,66.19171729]
[1747370292653,59.2,172.07,172.04,5.8109]
[1747370296259,59.2,172.07,172.01,66.19171729]
[1747370296862,59.06,172.12,172.04,6.85171729]
[1747370297156,59.06,172.11,172.05,3.7658]
[1747370297858,59.06,172.11,172.08,5.8097]
[1747370298267,59.06,172.11,172.05,3.7658]
[1747370299863,59.06,172.11,172.08,5.8095]
[1747370301058,59.06,172.12,172.08,5.8095]
[1747370301361,58.96,172.11,172.08,5.8095]
[1747370304565,59.06,172.12,172.05,3.7658]
[1747370304764,117.92,172.12,172.05,3.7658]
[1747370305065,117.92,172.12,172.05,62.8258]
[1747370305765,123.7285,172.12,172.05,62.8258]
[1747370306667,123.7285,172.12,172.08,5.8096]
[1747370306865,64.8685,172.12,172.05,62.8258]
[1747370307068,58.82,172.11,172.05,62.8258]
[1747370308263,59.06,172.12,172.05,62.8258]
[1747370308569,58.84,172.13,172.06,6.85171729]
[1747370308764,58.84,172.13,172.07,1.8558]
[1747370309366,59.06,172.16,172.12,5.8081]
[1747370309559,59.04,172.19,172.09,65.89171729]
[1747370309761,58.9,172.18,172.09,65.89171729]
[1747370311573,58.9,172.18,172.15,5.8072]
[1747370312572,64.8461,172.19,172.15,5.8072]
[1747370312763,64.6464,172.18,172.14,5.8077]
[1747370312967,58.84,172.18,172.14,5.8077]
[1747370313978,58.84,172.18,172.15,5.8074]
[1747370314275,58.84,172.18,172.09,65.89171729]
[1747370314464,58.84,172.18,172.12,6.85171729]
[1747370314664,58.84,172.18,172.13,1.8709]
[1747370314871,58.84,172.18,172.09,65.89171729]
[1747370315675,64.6467,172.18,172.13,5.808]
[1747370315976,58.84,172.18,172.13,5.808]
[1747370316579,5.8068,172.17,172.13,5.808]
[1747370317079,64.6465,172.18,172.13,5.808]
[1747370317282,64.6465,172.18,172.14,5.8077]
[1747370318677,58.84,172.18,172.15,5.8074]
[1747370319080,64.6466,172.18,172.09,65.89171729]
[1747370320583,64.6466,172.18,172.14,5.8077]
[1747370322685,64.6466,172.18,172.15,5.8074]
[1747370322686,58.84,172.18,172.15,5.8074]
[1747370323391,64.6464,172.18,172.13,5.8078]
[1747370323593,64.6464,172.18,172.09,65.89171729]
[1747370324788,64.6464,172.18,172.14,5.8077]
[1747370325889,5.8071,172.16,172.09,65.89171729]
[1747370326087,58.84,172.18,172.09,59.04]
[1747370326293,58.84,172.18,172.08,3.6899]
[1747370326491,5.8077,172.15,172.11,5.8087]
[1747370326688,58.8,172.14,172.11,5.8087]
[1747370327492,64.6078,172.14,172.11,5.8087]
[1747370328894,58.8,172.14,172.12,5.8084]
[1747370329088,58.8,172.14,172.09,6.85171729]
[1747370329597,58.8,172.14,172.1,1.9699]
[1747370330096,58.76,172.17,172.13,5.8078]
[1747370330296,58.76,172.17,172.1,1.9699]
[1747370330598,58.76,172.17,172.1,60.7499]
[1747370330996,58.74,172.17,172.14,5.8077]
[1747370331495,64.5469,172.17,172.12,5.8082]
[1747370331692,58.74,172.17,172.12,5.8082]
[1747370332497,5.8075,172.15,172.12,5.8082]
[1747370332696,5.8075,172.15,172.11,5.8087]
[1747370333602,58.74,172.17,172.08,1.8709]
[1747370333802,58.74,172.17,172.07,58.78]
[1747370334104,58.74,172.17,172.06,6.85171729]
[1747370334604,65.59171729,172.17,172.04,60.707]
[1747370334997,5.8089,172.11,172.04,60.707]
[1747370335206,58.88,172.1,172.04,60.707]
[1747370335400,58.88,172.1,172.01,62.5829]
[1747370335704,5.8104,172.07,172.01,60.6162]
[1747370335909,58.9,172.06,172.01,60.6162]
[1747370336102,58.9,172.06,172.01,1.8362]
[1747370336402,58.9,172.06,172.02,5.8118]
[1747370336605,64.7105,172.06,172.02,5.8118]
[1747370336798,58.9,172.06,172.0,5.8124]
[1747370336994,58.9,172.06,171.96,99.58311703]
[1747370337198,5.8118,172.03,171.96,99.58311703]